bitfinex-derivatives/quotes_BTCF0:USTF0_20250626
["timestamp","ask_amount","ask_price","bid_price","bid_amount"]
[1750905022222,1.7781809,107850.0,107840.0,0.81953234]
[1750905022931,1.7781809,107850.0,107840.0,0.6105587]
[1750905023828,1.7781809,107850.0,107840.0,0.2497587]
[1750905024028,1.7781809,107850.0,107840.0,0.9713587]
[1750905024827,1.7781809,107850.0,107840.0,0.2497587]
[1750905025029,1.7781809,107850.0,107840.0,0.9713587]
[1750905025225,1.7781809,107850.0,107840.0,1.18033234]
[1750905025623,1.7781809,107850.0,107840.0,0.45873234]
[1750905026226,1.7781809,107850.0,107840.0,1.18033234]
[1750905027426,1.7781809,107850.0,107840.0,0.9713587]
[1750905031029,0.984961,107850.0,107840.0,0.9713587]
[1750905031331,0.59163324,107850.0,107840.0,1.38930598]
[1750905031633,0.80060688,107850.0,107840.0,1.21133234]
[1750905031832,0.83090688,107850.0,107840.0,1.21133234]
[1750905032333,0.62193324,107850.0,107840.0,1.78761234]
[1750905032535,0.83090688,107850.0,107840.0,1.78761234]
[1750905032937,0.22163324,107850.0,107840.0,1.5786387]
[1750905033133,0.40531514,107850.0,107840.0,1.21133234]
[1750905033330,0.40531514,107850.0,107840.0,1.78757234]
[1750905033636,0.40531514,107850.0,107840.0,1.21133234]
[1750905033840,0.40531514,107850.0,107840.0,1.78757234]
[1750905034336,0.40531514,107850.0,107840.0,1.21133234]
[1750905034636,0.40531514,107850.0,107840.0,1.78757234]
[1750905034839,0.40531514,107850.0,107840.0,1.21133234]
[1750905035137,0.40531514,107850.0,107840.0,1.78753234]
[1750905036037,0.71531514,107850.0,107840.0,1.06593234]
[1750905036240,0.71531514,107850.0,107840.0,1.78753234]
[1750905036539,0.71531514,107850.0,107840.0,1.5785587]
[1750905036731,0.71531514,107850.0,107840.0,1.78753234]
[1750905037738,0.71531514,107850.0,107840.0,1.80302532]
[1750905040446,0.71531514,107850.0,107840.0,1.22682532]
[1750905040646,0.74731514,107850.0,107840.0,1.01785168]
[1750905040847,0.74731514,107850.0,107840.0,1.22682532]
[1750905041048,0.77234793,107850.0,107840.0,1.22682532]
[1750905041347,0.77234793,107850.0,107840.0,1.19582532]
[1750905041547,0.74731514,107850.0,107840.0,1.19582532]
[1750905041750,0.77234777,107850.0,107840.0,1.19582532]
[1750905042349,0.74731514,107850.0,107840.0,1.19582532]
[1750905043250,0.92926916,107850.0,107840.0,0.95645168]
[1750905043448,1.2029214,107850.0,107840.0,1.53257168]
[1750905044754,1.9629427,107850.0,107840.0,0.92545168]
[1750905045047,1.75396906,107850.0,107840.0,0.92545168]
[1750905045257,1.77900423,107850.0,107840.0,0.92545168]
[1750905046153,1.98797787,107850.0,107840.0,0.37929298]
[1750905046349,1.77900423,107850.0,107840.0,0.37929298]
[1750905046547,1.98797787,107850.0,107840.0,0.37929298]
[1750905047956,1.94290385,107850.0,107840.0,0.37929298]
[1750905048152,2.12485787,107850.0,107840.0,0.01849298]
[1750905048860,2.48565787,107850.0,107840.0,0.003]
[1750905049956,2.69463151,107850.0,107840.0,0.003]
[1750905050156,2.48565787,107850.0,107840.0,0.003]
[1750905050757,0.1853588,107840.0,107830.0,0.36172734]
[1750905051059,1.60468881,107840.0,107830.0,0.36172734]
[1750905051450,1.39571517,107840.0,107830.0,0.00092734]
[1750905052053,1.39571517,107840.0,107830.0,0.00392734]
[1750905053055,2.10967517,107840.0,107830.0,0.00792734]
[1750905053256,2.10967517,107840.0,107830.0,0.36872734]
[1750905053455,1.69172789,107840.0,107830.0,0.36872734]
[1750905053756,2.10967517,107840.0,107830.0,0.00792734]
[1750905054062,2.13967517,107840.0,107830.0,0.00492734]
[1750905054260,2.13967517,107840.0,107830.0,0.36572734]
[1750905054758,2.34864881,107840.0,107830.0,0.00492734]
[1750905055160,1.72172789,107840.0,107830.0,0.00492734]
[1750905055361,2.34864881,107840.0,107830.0,0.00492734]
[1750905055762,2.70944881,107840.0,107830.0,0.00492734]
[1750905057058,2.70944881,107840.0,107830.0,0.00292734]
[1750905058265,2.64016195,107840.0,107830.0,0.00292734]
[1750905061054,2.27936195,107840.0,107830.0,0.00292734]
[1750905061958,2.27836195,107840.0,107830.0,0.00192734]
[1750905062156,2.27936195,107840.0,107830.0,0.00292734]
[1750905062355,2.27936195,107840.0,107830.0,0.00192734]
[1750905063061,2.64016195,107840.0,107830.0,0.00192734]
[1750905065662,2.27936195,107840.0,107830.0,0.00192734]
[1750905066064,2.64016195,107840.0,107830.0,0.00192734]
[1750905066368,2.27936195,107840.0,107830.0,0.00192734]
[1750905066661,1.28758492,107840.0,107830.0,0.00192734]
[1750905066868,2.00058492,107840.0,107830.0,0.00192734]
[1750905067068,2.00058492,107840.0,107830.0,0.03302734]
[1750905067568,1.07216502,107840.0,107830.0,0.03302734]
[1750905067867,1.97046492,107840.0,107830.0,0.03302734]
[1750905068065,1.97046492,107840.0,107830.0,0.09472734]
[1750905068465,1.97046492,107840.0,107830.0,0.45552734]
[1750905068967,1.75504502,107840.0,107830.0,0.64090324]
[1750905069372,1.75504502,107840.0,107830.0,0.45552734]
[1750905070063,1.78654502,107840.0,107830.0,0.45552734]
[1750905070467,2.06536205,107840.0,107830.0,0.03302734]
[1750905070659,2.28338195,107840.0,107830.0,0.03302734]
[1750905070859,2.64418195,107840.0,107830.0,0.00192734]
[1750905076574,2.74418195,107840.0,107830.0,0.00192734]
[1750905076775,0.1853931,107820.0,107810.0,0.4228]
[1750905076967,1.7479852,107820.0,107810.0,0.4228]
[1750905077271,1.96073922,107820.0,107810.0,0.4228]
[1750905077974,1.97001226,107820.0,107810.0,0.4248]
[1750905078773,2.04449482,107820.0,107810.0,0.064]
[1750905078965,2.04449482,107820.0,107810.0,0.0337]
[1750905079170,2.07459482,107820.0,107810.0,0.0337]
[1750905079870,2.07559482,107820.0,107810.0,0.0377]
[1750905080069,2.07559482,107820.0,107810.0,0.006]
[1750905081874,2.22959482,107820.0,107810.0,0.006]
[1750905082075,2.07559482,107820.0,107810.0,0.006]
[1750905083372,2.07559482,107820.0,107810.0,0.003]
[1750905084475,2.07559482,107820.0,107810.0,0.001]
[1750905086173,0.1854103,107810.0,107800.0,0.0009276]
[1750905086373,1.33193642,107810.0,107800.0,0.0009276]
[1750905087677,0.95535351,107810.0,107800.0,0.0029276]
[1750905087877,1.4478625,107810.0,107800.0,0.4267276]
[1750905088077,1.16904547,107810.0,107800.0,0.4267276]
[1750905088281,0.59144547,107810.0,107800.0,0.6131551]
[1750905088576,1.1448503,107810.0,107800.0,0.62854327]
[1750905089172,1.1448903,107810.0,107800.0,0.62854327]
[1750905090384,1.1448103,107810.0,107800.0,0.62854327]
[1750905091580,0.5664103,107810.0,107800.0,0.62854327]
[1750905091775,1.1447303,107810.0,107800.0,0.62854327]
[1750905091979,0.5664103,107810.0,107800.0,0.9073603]
[1750905092179,1.1447303,107810.0,107800.0,0.9073603]
[1750905093725,1.1447303,107810.0,107800.0,0.62854327]
[1750905094073,0.1864103,107810.0,107800.0,0.62854327]
[1750905094879,0.1864103,107810.0,107800.0,0.98934327]
[1750905095573,0.1864103,107810.0,107800.0,1.2681603]
[1750905096479,0.1864103,107810.0,107800.0,0.98934327]
[1750905096679,0.21124424,107810.0,107800.0,0.98934327]
[1750905097084,0.1864103,107810.0,107800.0,0.98934327]
[1750905097677,0.21124602,107810.0,107800.0,0.98934327]
[1750905098779,0.1864103,107810.0,107800.0,0.98934327]
[1750905098980,0.21124778,107810.0,107800.0,0.98934327]
[1750905103882,0.86006481,107810.0,107800.0,0.98934327]
[1750905104782,0.86006481,107810.0,107800.0,0.80391577]
[1750905104988,0.86006481,107810.0,107800.0,0.98934327]
[1750905105288,1.04828135,107810.0,107800.0,0.98934327]
[1750905105986,1.23370125,107810.0,107800.0,0.95874327]
[1750905106388,1.23370125,107810.0,107800.0,0.77331577]
[1750905106787,1.26400125,107810.0,107800.0,0.77331577]
[1750905107185,1.07858135,107810.0,107800.0,0.77331577]
[1750905107489,1.26400125,107810.0,107800.0,0.74091577]
[1750905110485,1.08204723,107810.0,107800.0,0.74091577]
[1750905110690,1.26400125,107810.0,107800.0,0.74091577]
[1750905110892,1.28886366,107810.0,107800.0,0.74091577]
[1750905111191,1.42626366,107810.0,107800.0,0.74091577]
[1750905115381,1.42626366,107810.0,107800.0,0.7255276]
[1750905119895,1.14744663,107810.0,107800.0,0.7255276]
[1750905120094,1.42626366,107810.0,107800.0,0.7255276]
[1750905121195,1.42626366,107810.0,107800.0,0.0039276]
[1750905125389,1.70508069,107810.0,107800.0,0.0039276]
[1750905125899,1.42626366,107810.0,107800.0,0.0039276]
[1750905127499,0.1854447,107790.0,107780.0,0.3608]
[1750905127799,1.76946872,107790.0,107780.0,0.36042822]
[1750905127993,2.01552274,107790.0,107780.0,0.36042822]
[1750905129601,2.01552274,107790.0,107780.0,0.36342822]
[1750905130804,2.02464643,107790.0,107780.0,0.36342822]
[1750905131502,2.02464643,107790.0,107770.0,0.36172786]
[1750905131503,0.1854619,107780.0,107770.0,0.36172786]
[1750905131802,1.30321994,107780.0,107770.0,0.36172786]
[1750905132596,2.01917994,107780.0,107770.0,0.36172786]
[1750905133005,2.01917994,107780.0,107770.0,0.39192786]
[1750905133594,2.01917994,107780.0,107770.0,0.39392786]
[1750905134199,2.02017994,107780.0,107770.0,0.36772786]
[1750905135297,1.99531285,107780.0,107770.0,0.36772786]
[1750905137709,1.99531285,107780.0,107770.0,0.40012786]
[1750905138102,1.99431285,107780.0,107770.0,0.39612786]
[1750905138302,1.99631285,107780.0,107770.0,0.39712786]
[1750905138509,1.99631285,107780.0,107770.0,0.39512786]
[1750905138705,1.99731285,107780.0,107770.0,0.39512786]
[1750905139308,1.24955285,107780.0,107770.0,0.39512786]
[1750905139614,1.90021285,107780.0,107770.0,0.39512786]
[1750905139905,1.71479295,107780.0,107770.0,0.45592786]
[1750905140103,1.71479295,107780.0,107770.0,0.00192786]
[1750905140309,1.99671285,107780.0,107770.0,0.00192786]
[1750905140810,1.81129295,107780.0,107770.0,0.00192786]
[1750905141014,1.99671285,107780.0,107770.0,0.00192786]
[1750905141312,2.02144287,107780.0,107770.0,0.00192786]
[1750905141610,2.38224287,107780.0,107770.0,0.00192786]
[1750905151214,2.10342584,107780.0,107770.0,0.00192786]
[1750905151515,2.38224287,107780.0,107770.0,0.00192786]
[1750905152612,1.92147182,107780.0,107770.0,0.00192786]
[1750905152816,2.20028885,107780.0,107770.0,0.00192786]
[1750905153618,2.38224287,107780.0,107770.0,0.00192786]
[1750905154915,2.38424287,107780.0,107770.0,0.00192786]
[1750905155516,2.38424287,107780.0,107770.0,0.03382786]
[1750905156217,2.38404287,107780.0,107770.0,0.03382786]
[1750905158620,2.35344287,107780.0,107770.0,0.03382786]
[1750905158814,1.99264287,107780.0,107770.0,0.03382786]
[1750905160114,2.35344287,107780.0,107770.0,0.03382786]
[1750905160319,2.38634287,107780.0,107770.0,0.00192786]
[1750905163027,2.10752584,107780.0,107770.0,0.00192786]
[1750905163322,2.38634287,107780.0,107770.0,0.00192786]
[1750905164022,2.35344287,107780.0,107770.0,0.00192786]
[1750905164222,2.35344287,107780.0,107770.0,0.03422786]
[1750905164621,1.99264287,107780.0,107770.0,0.03422786]
[1750905165426,2.02374287,107780.0,107770.0,0.03422786]
[1750905165928,1.96082287,107780.0,107770.0,0.03422786]
[1750905166216,1.96082287,107780.0,107770.0,0.09912786]
[1750905171327,1.96062287,107780.0,107770.0,0.09912786]
[1750905172430,1.68180584,107780.0,107770.0,0.09912786]
[1750905172632,1.96062287,107780.0,107770.0,0.09912786]
[1750905173625,1.77520297,107780.0,107770.0,0.09912786]
[1750905173829,1.96062287,107780.0,107770.0,0.09912786]
[1750905174732,1.96062287,107780.0,107770.0,0.06742786]
[1750905176633,1.68180584,107780.0,107770.0,0.06742786]
[1750905176827,0.56319192,107780.0,107770.0,0.42822786]
[1750905177032,0.56319192,107780.0,107770.0,0.46072786]
[1750905177224,0.31319192,107780.0,107770.0,0.46072786]
[1750905177430,0.59200895,107780.0,107770.0,0.46072786]
[1750905179436,0.56727893,107780.0,107770.0,0.46072786]
[1750905180329,0.2884619,107780.0,107770.0,0.64620696]
[1750905180734,0.2884619,107780.0,107770.0,0.92502399]
[1750905181425,0.2884619,107780.0,107770.0,0.64620696]
[1750905181628,0.2884619,107780.0,107770.0,1.36059199]
[1750905181823,0.1884619,107780.0,107770.0,1.36059199]
[1750905182030,0.1884619,107780.0,107770.0,1.69059199]
[1750905182234,0.1884619,107780.0,107770.0,1.41177496]
[1750905182435,0.1884619,107780.0,107770.0,1.69059199]
[1750905182939,0.12083226,107820.0,107810.0,0.1854102]
[1750905183132,0.2317326,107830.0,107820.0,0.1853777]
[1750905183443,0.23136082,107830.0,107820.0,0.6519423]
[1750905183634,0.23136082,107830.0,107820.0,0.8374303]
[1750905184234,0.18501602,107830.0,107820.0,1.11624733]
[1750905184936,0.18501602,107830.0,107820.0,0.8374303]
[1750905185137,0.18801602,107830.0,107820.0,0.8374303]
[1750905186438,0.003,107830.0,107820.0,0.8374303]
[1750905186642,0.006,107830.0,107820.0,1.11724733]
[1750905187536,0.006,107830.0,107820.0,1.70080733]
[1750905188041,0.006,107830.0,107820.0,1.4219903]
[1750905189137,0.006,107830.0,107820.0,1.7319903]
[1750905189332,0.006,107830.0,107820.0,1.4219903]
[1750905189940,0.006,107830.0,107820.0,1.70080733]
[1750905190835,0.006,107830.0,107820.0,2.01080733]
[1750905193644,0.006,107830.0,107820.0,2.02616147]
[1750905195045,0.006,107830.0,107820.0,1.71616147]
[1750905195345,0.006,107830.0,107820.0,2.07616147]
[1750905195743,0.001,107840.0,107830.0,0.1853758]
[1750905195945,0.101,107840.0,107830.0,1.40831283]
[1750905196143,0.001,107840.0,107830.0,1.59378483]
[1750905196346,0.001,107840.0,107830.0,1.21378483]
[1750905197346,0.005,107840.0,107830.0,1.21478483]
[1750905197541,0.1953586,107840.0,107830.0,1.21478483]
[1750905198147,0.01,107840.0,107830.0,1.21478483]
[1750905201648,0.01,107840.0,107830.0,1.02931283]
[1750905202553,0.01,107840.0,107830.0,1.35931283]
[1750905205749,0.01,107840.0,107830.0,1.02931283]
[1750905207748,1.36368475,107840.0,107830.0,0.5471759]
[1750905207953,1.67025348,107840.0,107830.0,0.6874559]
[1750905208853,1.64550465,107840.0,107830.0,0.5471759]
[1750905209049,1.67034867,107840.0,107830.0,0.5471759]
[1750905209848,1.67034867,107840.0,107830.0,0.3618]
[1750905211555,1.9491657,107840.0,107830.0,0.3618]
[1750905212654,1.67034867,107840.0,107830.0,0.3618]
[1750905212853,1.67034867,107840.0,107830.0,0.5471759]
[1750905213558,1.81066867,107840.0,107830.0,0.5471759]
[1750905213755,1.48839465,107840.0,107830.0,0.5471759]
[1750905213953,2.25130867,107840.0,107830.0,0.5471759]
[1750905215359,2.25130867,107840.0,107830.0,0.3618]
[1750905216159,2.25130867,107840.0,107830.0,0.5471759]
[1750905216459,2.25126867,107840.0,107830.0,0.5471759]
[1750905217358,2.25126867,107840.0,107830.0,0.3618]
[1750905217954,2.22642465,107840.0,107830.0,0.3618]
[1750905218155,2.25130176,107840.0,107830.0,0.3618]
[1750905218655,2.25130176,107840.0,107830.0,0.5471759]
[1750905219161,2.25097398,107840.0,107830.0,0.5471759]
[1750905219458,1.97199695,107840.0,107830.0,0.5471759]
[1750905219659,1.46248803,107840.0,107830.0,0.5787759]
[1750905220361,1.46216803,107840.0,107830.0,0.5787759]
[1750905221766,1.43096803,107840.0,107830.0,0.5787759]
[1750905222060,1.18046813,107840.0,107830.0,0.88989293]
[1750905222263,0.59990813,107840.0,107830.0,0.92209293]
[1750905222457,1.18010813,107840.0,107830.0,0.92209293]
[1750905223064,1.21310813,107840.0,107830.0,0.6432759]
[1750905223253,1.21310813,107840.0,107830.0,0.6110759]
[1750905223456,1.21310813,107840.0,107830.0,0.5787759]
[1750905225153,1.24550813,107840.0,107830.0,0.5787759]
[1750905228770,1.21310813,107840.0,107830.0,0.5787759]
[1750905232272,0.83310813,107840.0,107830.0,0.5787759]
[1750905232472,0.88310813,107840.0,107830.0,0.5787759]
[1750905233476,1.98143408,107840.0,107830.0,0.3618]
[1750905233677,2.19945398,107840.0,107830.0,0.3618]
[1750905243191,1.83945398,107840.0,107830.0,0.3618]
[1750905243482,2.18945398,107840.0,107830.0,0.3618]
[1750905245188,2.00749996,107840.0,107830.0,0.3618]
[1750905245388,2.18945398,107840.0,107830.0,0.3618]
[1750905246686,2.21945398,107840.0,107830.0,0.3618]
[1750905250088,2.35845398,107840.0,107830.0,0.3618]
[1750905252088,2.35845398,107840.0,107830.0,0.3617]
[1750905252695,2.17303408,107840.0,107830.0,0.3617]
[1750905252991,2.35845398,107840.0,107830.0,0.3617]
[1750905253787,2.63727101,107840.0,107830.0,0.3617]
[1750905254095,2.35845398,107840.0,107830.0,0.3617]
[1750905258691,1.63925398,107840.0,107830.0,0.3617]
[1750905258893,2.21665398,107840.0,107830.0,0.3617]
[1750905261099,1.93783695,107840.0,107830.0,0.3617]
[1750905261298,2.21665398,107840.0,107830.0,0.3924]
[1750905262100,2.21665398,107840.0,107830.0,0.3617]
[1750905262299,2.49547101,107840.0,107830.0,0.3617]
[1750905268998,2.49547101,107840.0,107830.0,0.3618]
[1750905269393,2.49547101,107840.0,107830.0,0.001]
[1750905269602,2.85627101,107840.0,107830.0,0.001]
[1750905273899,2.99379101,107840.0,107830.0,0.001]
[1750905274106,2.63299101,107840.0,107830.0,0.001]
[1750905275405,2.35417398,107840.0,107830.0,0.001]
[1750905275601,1.45383408,107840.0,107830.0,0.001]
[1750905275908,2.32157398,107840.0,107830.0,0.3618]
[1750905276109,2.32157398,107840.0,107830.0,0.3944]
[1750905276603,1.74417398,107840.0,107830.0,0.4574]
[1750905276910,2.32157398,107840.0,107830.0,0.4574]
[1750905281204,1.60665398,107840.0,107830.0,0.4574]
[1750905281405,1.38823408,107840.0,107830.0,0.4574]
[1750905281607,0.59990803,107840.0,107830.0,0.92159293]
[1750905281808,0.79726803,107840.0,107830.0,0.92159293]
[1750905282110,1.15726803,107840.0,107830.0,0.4574]
[1750905282309,0.79726803,107840.0,107830.0,0.6427759]
[1750905282513,1.11726803,107840.0,107830.0,0.4574]
[1750905283010,1.39608506,107840.0,107830.0,0.4574]
[1750905283508,1.57803908,107840.0,107830.0,0.4574]
[1750905285307,1.57799908,107840.0,107830.0,0.4574]
[1750905285909,1.29918205,107840.0,107830.0,0.4574]
[1750905286107,1.57799908,107840.0,107830.0,0.4574]
[1750905291210,1.76341898,107840.0,107830.0,0.4574]
[1750905291407,2.09097388,107840.0,107830.0,0.4574]
[1750905291613,2.09097388,107840.0,107830.0,0.3944]
[1750905291915,2.12097388,107840.0,107830.0,0.3944]
[1750905294417,2.13097388,107840.0,107830.0,0.3944]
[1750905298316,2.10097388,107840.0,107830.0,0.3944]
[1750905300717,2.10097388,107840.0,107830.0,0.4258]
[1750905303723,2.13357388,107840.0,107830.0,0.3944]
[1750905304618,1.94815398,107840.0,107830.0,0.3944]
[1750905304822,2.16667388,107840.0,107830.0,0.3944]
[1750905305817,1.88785685,107840.0,107830.0,0.3944]
[1750905306018,2.16667388,107840.0,107830.0,0.3944]
[1750905310325,1.88785685,107840.0,107830.0,0.3944]
[1750905310527,2.16667388,107840.0,107830.0,0.3944]
[1750905311932,2.16667388,107840.0,107830.0,0.3618]
[1750905312634,1.98125398,107840.0,107830.0,0.3618]
[1750905312838,2.16667388,107840.0,107830.0,0.3618]
[1750905317437,2.44549091,107840.0,107830.0,0.3618]
[1750905317636,2.44549091,107840.0,107830.0,0.001]
[1750905321839,2.26353689,107840.0,107830.0,0.001]
[1750905322040,2.44549091,107840.0,107830.0,0.001]
[1750905324342,2.11793601,107840.0,107830.0,0.001]
[1750905324543,2.44549091,107840.0,107830.0,0.001]
[1750905326344,2.51513927,107840.0,107830.0,0.001]
[1750905329243,0.1853931,107820.0,107810.0,0.4241]
[1750905329545,1.09719021,107820.0,107810.0,0.4241]
[1750905329748,1.51537849,107820.0,107810.0,0.4554]
[1750905330546,1.51637849,107820.0,107810.0,0.4574]
[1750905330747,1.69833251,107820.0,107810.0,0.4574]
[1750905336451,1.69833251,107820.0,107810.0,0.66649414]
[1750905337352,1.28014423,107820.0,107810.0,0.66649414]
[1750905337552,1.48919837,107820.0,107810.0,0.66649414]
[1750905339450,1.48919837,107820.0,107810.0,0.85190444]
[1750905340855,0.99724435,107820.0,107810.0,0.85190444]
[1750905341261,0.78815021,107820.0,107810.0,0.85190444]
[1750905341651,0.99724435,107820.0,107810.0,0.85190444]
[1750905342857,0.78815021,107820.0,107810.0,0.85190444]
[1750905343059,0.1863931,107820.0,107810.0,0.85190444]
[1750905344259,0.1863931,107820.0,107810.0,1.36740844]
[1750905344858,0.1863931,107820.0,107810.0,1.31906444]
[1750905346760,0.001,107820.0,107810.0,1.89586444]
[1750905347157,0.1863931,107820.0,107810.0,1.89586444]
[1750905347460,0.1863931,107820.0,107810.0,1.59586444]
[1750905348056,0.39548724,107820.0,107810.0,1.59586444]
[1750905349961,0.1863931,107820.0,107810.0,1.59586444]
[1750905350961,0.39548724,107820.0,107810.0,1.59586444]
[1750905353063,0.39548724,107820.0,107810.0,1.3867703]
[1750905353263,0.39548724,107820.0,107810.0,1.59586444]
[1750905354566,0.39548724,107820.0,107810.0,1.56586444]
[1750905356562,0.1863931,107820.0,107810.0,1.56586444]
[1750905356766,0.39548724,107820.0,107810.0,1.56586444]
[1750905359870,0.1863931,107820.0,107810.0,1.56586444]
[1750905361072,0.001,107820.0,107810.0,1.56586444]
[1750905361674,0.1863931,107820.0,107810.0,1.56586444]
[1750905362970,0.001,107820.0,107810.0,2.08495858]
[1750905363172,0.18604112,107840.0,107830.0,0.1853759]
[1750905363372,0.76250918,107840.0,107830.0,1.11607004]
[1750905363671,0.76250918,107840.0,107830.0,1.21177004]
[1750905363873,0.79310918,107840.0,107830.0,1.21177004]
[1750905364563,0.79510918,107840.0,107830.0,1.21177004]
[1750905364973,0.79810918,107840.0,107830.0,1.21277004]
[1750905365375,0.82368078,107840.0,107830.0,1.21277004]
[1750905365577,0.82368078,107840.0,107830.0,1.18157004]
[1750905366776,0.82368078,107840.0,107830.0,1.14827004]
[1750905372179,0.64172676,107840.0,107830.0,1.14827004]
[1750905372378,0.82368078,107840.0,107830.0,1.14827004]
[1750905372679,0.63826088,107840.0,107830.0,1.14827004]
[1750905372879,0.82368078,107840.0,107830.0,1.14827004]
[1750905373578,0.88498078,107840.0,107830.0,1.14827004]
[1750905375478,0.85940918,107840.0,107830.0,1.14827004]
[1750905377285,0.79810918,107840.0,107830.0,1.14827004]
[1750905377486,0.79810918,107840.0,107830.0,1.20937004]
[1750905378585,0.61615516,107840.0,107830.0,1.20937004]
[1750905382487,0.61615516,107840.0,107830.0,1.17827004]
[1750905382684,0.64805516,107840.0,107830.0,1.17827004]
[1750905383687,0.83000918,107840.0,107830.0,1.17827004]
[1750905383882,0.62091504,107840.0,107830.0,1.17827004]
[1750905384282,0.83000918,107840.0,107830.0,1.17827004]
[1750905384484,0.62091504,107840.0,107830.0,1.17827004]
[1750905384685,0.83000918,107840.0,107830.0,0.9691759]
[1750905385189,0.79810918,107840.0,107830.0,1.17827004]
[1750905385389,0.82367398,107840.0,107830.0,1.20927004]
[1750905386184,0.03123702,107840.0,107830.0,1.78555004]
[1750905386385,0.00567222,107840.0,107830.0,2.13164418]
[1750905387799,0.00567222,107840.0,107830.0,1.92255004]
[1750905389500,0.00567222,107840.0,107830.0,2.13164418]
[1750905390898,0.00567222,107840.0,107830.0,1.92255004]
[1750905392705,0.6092192,107840.0,107830.0,1.86143004]
[1750905392907,0.46432506,107840.0,107830.0,1.86143004]
[1750905393805,0.64974496,107840.0,107830.0,1.86143004]
[1750905395004,0.64974496,107840.0,107830.0,1.72443004]
[1750905395305,0.86169898,107840.0,107830.0,1.72443004]
[1750905395506,0.86169898,107840.0,107830.0,1.14827004]
[1750905395708,1.39834802,107840.0,107830.0,0.9079759]
[1750905396004,1.97450802,107840.0,107830.0,0.7226]
[1750905396198,1.65308713,107840.0,107830.0,0.9079759]
[1750905396399,1.86063018,107840.0,107830.0,0.7226]
[1750905397805,1.86063018,107840.0,107830.0,0.9079759]
[1750905399509,1.86063018,107840.0,107830.0,0.7226]
[1750905401209,2.23063018,107840.0,107830.0,0.7226]
[1750905401509,2.23063018,107840.0,107830.0,0.9079759]
[1750905402005,2.23063018,107840.0,107830.0,0.9179759]
[1750905402208,2.23063018,107840.0,107830.0,0.7326]
[1750905402705,2.04521028,107840.0,107830.0,0.7326]
[1750905402909,2.23063018,107840.0,107830.0,0.7326]
[1750905404212,2.04867616,107840.0,107830.0,0.7326]
[1750905404409,2.23063018,107840.0,107830.0,0.7326]
[1750905405705,2.23063018,107840.0,107830.0,0.3718]
[1750905406308,0.21661995,107840.0,107830.0,1.16589731]
[1750905406515,0.21661995,107840.0,107830.0,1.26109731]
[1750905406814,0.21661995,107840.0,107830.0,1.39793731]
[1750905407413,0.03126125,107840.0,107830.0,1.39793731]
[1750905407713,0.21661995,107840.0,107830.0,1.39793731]
[1750905408407,0.21661995,107840.0,107830.0,1.1192159]
[1750905408609,0.39857397,107840.0,107830.0,1.1192159]
[1750905408814,0.43157397,107840.0,107830.0,1.1192159]
[1750905409013,0.43157397,107840.0,107830.0,1.0869159]
[1750905409213,0.46257397,107840.0,107830.0,1.0869159]
[1750905409415,0.46257397,107840.0,107830.0,0.9069159]
[1750905409816,0.64799387,107840.0,107830.0,0.9069159]
[1750905412120,0.64799387,107840.0,107830.0,1.2677159]
[1750905412619,1.02799387,107840.0,107830.0,1.2677159]
[1750905412810,1.30671528,107840.0,107830.0,1.2356159]
[1750905413016,1.05799387,107840.0,107830.0,0.9134]
[1750905413321,1.33671528,107840.0,107830.0,1.0987759]
[1750905414019,1.05799387,107840.0,107830.0,1.0987759]
[1750905415121,1.03240484,107840.0,107830.0,1.0987759]
[1750905415619,1.05799841,107840.0,107830.0,1.0987759]
[1750905421225,1.33671982,107840.0,107830.0,1.0987759]
[1750905421527,1.05799841,107840.0,107830.0,1.0987759]
[1750905421727,1.03240484,107840.0,107830.0,1.0987759]
[1750905422023,1.02801281,107840.0,107830.0,1.0987759]
[1750905422936,1.02801281,107840.0,107830.0,1.1291759]
[1750905427022,0.84605879,107840.0,107830.0,1.1291759]
[1750905427225,0.2326501,107870.0,107860.0,0.1853244]
[1750905427428,0.49295402,107870.0,107860.0,0.9069244]
[1750905427729,0.311,107870.0,107860.0,1.27874581]
[1750905427924,0.311,107870.0,107860.0,1.85466581]
[1750905428230,0.001,107870.0,107860.0,1.85466581]
[1750905428731,0.006,107870.0,107860.0,1.86381198]
[1750905429533,0.004,107870.0,107860.0,2.00065198]
[1750905429825,0.004,107870.0,107860.0,2.00165198]
[1750905430023,0.012,107870.0,107860.0,2.00165198]
[1750905430220,0.012,107870.0,107860.0,2.0769314]
[1750905431238,0.007,107870.0,107860.0,2.3959314]
[1750905432229,0.007,107870.0,107860.0,1.54128999]
[1750905432532,0.007,107870.0,107860.0,1.5000114]
[1750905433734,0.007,107870.0,107860.0,1.8500114]
[1750905433928,0.007,107870.0,107860.0,1.5000114]
[1750905434634,0.1923071,107870.0,107860.0,1.5000114]
[1750905435533,0.007,107870.0,107860.0,1.5000114]
[1750905438732,0.007,107870.0,107860.0,1.8400114]
[1750905439845,0.007,107870.0,107860.0,1.5000114]
[1750905442343,0.007,107870.0,107860.0,2.0759314]
[1750905442842,0.1923072,107870.0,107860.0,1.08444999]
[1750905443046,1.47595743,107870.0,107860.0,0.91607057]
[1750905443345,1.56965743,107870.0,107860.0,0.91607057]
[1750905443543,1.29093602,107870.0,107860.0,0.91607057]
[1750905444347,0.96338112,107870.0,107860.0,0.91607057]
[1750905444648,1.29093602,107870.0,107860.0,0.9069244]
[1750905445947,1.56965743,107870.0,107860.0,0.7216]
[1750905446247,1.56965743,107870.0,107860.0,0.9069244]
[1750905447551,1.29093602,107870.0,107860.0,0.9069244]
[1750905447952,1.86685602,107870.0,107860.0,0.9069244]
[1750905451461,1.63685602,107870.0,107860.0,0.9069244]
[1750905453154,0.2860072,107870.0,107860.0,0.9069244]
[1750905453361,0.64028112,107870.0,107860.0,1.21714581]
[1750905453762,0.64028112,107870.0,107860.0,1.24934581]
[1750905454664,0.59028112,107870.0,107860.0,1.24934581]
[1750905457266,0.55968112,107870.0,107860.0,1.24934581]
[1750905457466,0.55968112,107870.0,107860.0,1.28044581]
[1750905457661,0.37437392,107870.0,107860.0,1.28044581]
[1750905458262,0.55968112,107870.0,107860.0,1.28044581]
[1750905459264,0.55968112,107870.0,107860.0,1.85620581]
[1750905459570,0.89968112,107870.0,107860.0,1.85620581]
[1750905460268,0.55968112,107870.0,107860.0,1.85620581]
[1750905461472,0.1923072,107870.0,107860.0,1.85620581]
[1750905461969,0.1923072,107870.0,107860.0,1.5141844]
[1750905462171,0.2548072,107870.0,107860.0,1.79286581]
[1750905462567,0.5848072,107870.0,107860.0,1.5141444]
[1750905463367,0.95218112,107870.0,107860.0,0.9384244]
[1750905463572,0.95218112,107870.0,107860.0,1.5141444]
[1750905465474,0.97778684,107870.0,107860.0,0.9384244]
[1750905467776,1.30534174,107870.0,107860.0,0.9384244]
[1750905473574,1.30534174,107870.0,107860.0,1.21714581]
[1750905475384,1.27973602,107870.0,107860.0,0.9384244]